bitfinex/quotes_ETHUSD_20250603
["timestamp","ask_amount","ask_price","bid_price","bid_amount"]
[1748925240935,0.7685,2593.5,2593.2,3.85623576]
[1748925241569,0.7685,2593.5,2593.1,6.79783645]
[1748925243059,0.8231,2593.8,2593.3,6.79758914]
[1748925243264,0.8231,2593.8,2593.3,6.79751951]
[1748925243469,4.67846298,2593.8,2593.3,6.79751951]
[1748925243678,0.8231,2593.8,2593.3,6.79751951]
[1748925243858,0.8231,2593.8,2593.4,3.8559284]
[1748925245286,4.67849232,2593.8,2593.3,6.7975849]
[1748925245483,4.67849232,2593.8,2593.3,2.94152313]
[1748925246400,3.85556611,2593.7,2593.3,2.94152313]
[1748925246562,4.67850981,2593.8,2593.3,2.94152313]
[1748925246761,4.72670385,2593.8,2593.3,2.94152313]
[1748925247159,3.85552328,2593.7,2593.3,2.94152313]
[1748925247488,4.67851672,2593.8,2593.3,2.94152313]
[1748925247685,0.87129404,2593.8,2593.3,2.94152313]
[1748925248702,3.85557363,2593.7,2593.0,10.83801826]
[1748925248899,5.2013503,2593.8,2593.2,3.85618347]
[1748925249098,4.72669937,2593.8,2593.3,3.85606956]
[1748925249475,4.72669937,2593.8,2593.2,6.79766048]
[1748925249672,0.87129404,2593.8,2593.4,3.85585805]
[1748925249876,0.8231,2593.8,2593.5,3.85577038]
[1748925250496,0.8231,2593.8,2593.4,2.94152313]
[1748925250994,0.8231,2593.8,2593.4,6.79746309]
[1748925251198,0.8231,2593.8,2593.5,3.85578117]
[1748925251396,0.8231,2593.8,2593.4,2.94152313]
[1748925252199,0.8231,2593.8,2593.5,3.85571472]
[1748925254300,0.8231,2593.8,2593.4,6.79736847]
[1748925254467,0.8231,2593.8,2593.5,3.85571105]
[1748925256989,0.02,2593.9,2593.5,3.85579332]
[1748925257320,0.02,2593.9,2593.5,3.85572864]
[1748925258714,0.02,2593.9,2593.5,3.85573505]
[1748925258915,0.02,2593.9,2593.7,3.8554011]
[1748925259124,0.02,2593.9,2593.8,2.94152313]
[1748925259281,0.02,2593.9,2593.6,6.79710178]
[1748925259480,0.02,2593.9,2593.6,2.94152313]
[1748925260117,0.02,2593.9,2593.5,4.70472582]
[1748925260911,3.87520876,2593.9,2593.5,0.67972582]
[1748925261088,3.85552464,2593.7,2593.5,0.67972582]
[1748925261430,3.85534736,2593.8,2593.3,3.85606944]
[1748925261807,3.87525627,2593.9,2593.3,3.85606944]
[1748925262155,3.87525627,2593.9,2593.4,3.85591978]
[1748925262293,3.87525627,2593.9,2593.2,2.94152313]
[1748925262294,0.02,2593.9,2593.2,2.94152313]
[1748925262498,3.8554422,2593.8,2593.2,2.94152313]
[1748925262900,3.8554422,2593.8,2593.3,3.85608057]
[1748925263099,3.92342407,2593.9,2593.4,3.85591394]
[1748925263835,0.02,2593.9,2593.4,3.85591394]
[1748925264043,3.87521591,2593.9,2593.4,3.85591394]
[1748925264527,3.87521591,2593.9,2593.3,3.85601968]
[1748925264919,3.85536178,2593.8,2593.2,2.94152313]
[1748925265121,3.85536178,2593.8,2592.7,0.38303855]
[1748925265122,0.7816,2593.6,2592.7,0.38303855]
[1748925265330,3.90405691,2593.5,2592.9,3.85660713]
[1748925265643,0.04820138,2593.5,2593.0,3.85644802]
[1748925267636,0.04820138,2593.5,2593.1,3.85634882]
[1748925267939,3.90400759,2593.5,2593.0,3.85649563]
[1748925268526,3.90400759,2593.5,2592.9,11.85661984]
[1748925268761,0.758,2593.3,2592.7,0.38713728]
[1748925269063,3.85632341,2593.2,2592.6,6.79861178]
[1748925269371,3.90459343,2593.1,2592.6,6.79861178]
[1748925273534,0.8102,2593.0,2592.6,6.79861178]
[1748925273936,4.66676328,2593.0,2592.6,2.94152313]
[1748925274278,4.66674854,2593.0,2592.6,2.94152313]
[1748925274473,0.8102,2593.0,2592.6,2.94152313]
[1748925274646,0.8102,2593.0,2592.6,6.79864113]
[1748925274837,0.8102,2593.0,2592.6,3.857118]
[1748925275134,0.8102,2593.0,2592.5,7.18711219]
[1748925275333,0.8102,2593.0,2592.5,6.79879049]
[1748925275534,0.8102,2593.0,2592.7,6.79838364]
[1748925275730,0.823,2593.2,2592.9,6.79814374]
[1748925277179,0.7601,2593.5,2593.0,3.85647522]
[1748925277374,4.66410994,2593.5,2593.0,3.85647522]
[1748925278273,0.80829992,2593.5,2592.9,6.79813694]
[1748925278579,3.85596087,2593.4,2592.9,6.79813694]
[1748925278988,0.78,2593.2,2592.6,6.798644]
[1748925279653,4.63632625,2593.2,2592.6,6.798644]
[1748925280561,0.0482059,2593.1,2592.6,6.798644]
[1748925281267,4.63632625,2593.2,2592.6,6.798644]
[1748925281655,0.78,2593.2,2592.7,3.85691071]
[1748925282178,4.63624764,2593.2,2592.6,2.94152313]
[1748925282378,4.63624764,2593.2,2592.7,3.85693963]
[1748925283459,4.67582948,2593.6,2593.1,2.94152313]
[1748925283662,0.8201,2593.6,2593.1,6.79781216]
[1748925283901,0.8201,2593.6,2593.1,6.79789746]
[1748925284062,0.8201,2593.6,2593.2,3.85615761]
[1748925284269,0.8882968,2593.9,2593.5,2.94152313]
[1748925284463,0.8401,2593.9,2593.5,2.94152313]
[1748925284699,0.8401,2593.9,2593.5,6.79721909]
[1748925284968,0.8401,2593.9,2593.5,6.79725208]
[1748925286101,0.8401,2593.9,2593.5,2.94152313]
[1748925286316,4.6953344,2593.9,2593.3,11.6253035]
[1748925286613,4.69536839,2593.9,2593.3,3.85608037]
[1748925286899,4.69536839,2593.9,2593.4,3.85593985]
[1748925287477,4.69530229,2593.9,2593.3,3.85602477]
[1748925287677,4.69530229,2593.9,2593.4,2.94152313]
[1748925287976,4.69530229,2593.9,2593.4,6.79745751]
[1748925287977,0.8401,2593.9,2593.4,6.79745751]
[1748925288177,3.85540009,2593.8,2593.2,3.85623939]
[1748925288505,4.7435882,2593.9,2593.4,3.85590265]
[1748925288691,0.8401,2593.9,2593.4,3.85590265]
[1748925289399,0.8401,2593.9,2593.5,2.94152313]
[1748925289705,0.8401,2593.9,2593.5,6.79723774]
[1748925290065,0.8401,2593.9,2593.5,6.79719436]
[1748925290602,0.8401,2593.9,2593.5,2.94152313]
[1748925290791,0.8401,2593.9,2593.4,3.85591677]
[1748925291817,0.8401,2593.9,2593.5,6.79723196]
[1748925293280,0.8401,2593.9,2593.5,2.94152313]
[1748925294110,3.85548363,2593.8,2593.2,15.85920478]
[1748925295395,3.90367736,2593.8,2593.2,15.85920478]
[1748925295995,3.90367736,2593.8,2593.2,15.85720478]
[1748925297019,3.85548363,2593.8,2593.2,15.85720478]
[1748925297332,3.85548363,2593.8,2593.3,3.85608927]
[1748925297931,3.85548363,2593.8,2593.2,12.001]
[1748925297932,3.85548363,2593.8,2593.2,15.85719809]
[1748925299432,4.69531165,2593.9,2593.4,3.85593774]
[1748925299433,4.6953526,2593.9,2593.4,3.85593774]
[1748925299639,0.8401,2593.9,2593.4,3.85583434]
[1748925299839,0.8401,2593.9,2593.4,3.855942]
[1748925300629,4.69530912,2593.9,2593.3,6.79755907]
[1748925301015,0.04819375,2593.8,2593.3,2.94152313]
[1748925301240,3.90357796,2593.8,2593.3,6.79757306]
[1748925301426,3.85538421,2593.8,2593.3,2.94152313]
[1748925301625,3.85538421,2593.8,2593.3,6.79760092]
[1748925301830,0.02,2594.9,2593.8,0.7668]
[1748925302055,0.02,2594.9,2594.5,2.94152313]
[1748925302344,0.02,2594.9,2594.6,8.37083231]
[1748925302516,0.02,2594.9,2594.6,12.22498765]
[1748925302845,0.02,2594.9,2594.4,4.62125574]
[1748925302846,0.02,2594.9,2594.4,6.79590764]
[1748925303035,0.02,2594.9,2594.5,3.85430342]
[1748925303233,0.02,2594.9,2594.5,3.89284207]
[1748925303634,0.02,2594.9,2594.6,3.85405448]
[1748925304240,0.02,2594.9,2594.7,6.79551772]
[1748925304445,0.02,2594.9,2594.8,4.57195197]
[1748925306144,0.02,2594.9,2594.8,0.67955177]
[1748925306317,0.02,2594.9,2594.7,2.94152313]
[1748925307410,0.02,2594.9,2594.8,3.85386156]
[1748925309344,0.02,2594.9,2594.7,2.94152313]
[1748925309952,0.02,2594.9,2594.8,3.85386156]
[1748925310310,0.02,2594.9,2594.7,2.94152313]
[1748925310311,0.02,2594.9,2594.7,6.79548915]
[1748925310754,0.02,2594.9,2594.8,3.85386156]
[1748925312019,0.02,2594.9,2594.8,4.07046681]
[1748925312240,0.02,2594.9,2594.8,3.85386156]
[1748925312517,0.02,2594.9,2594.8,3.89239659]
[1748925313016,0.02,2594.9,2594.8,4.10898933]
[1748925313215,0.02,2594.9,2594.8,3.89239659]
[1748925313948,0.02,2594.9,2594.8,3.85386156]
[1748925317450,0.02,2594.9,2594.8,3.89239407]
[1748925320653,0.02,2594.9,2594.8,7.90139407]
[1748925320949,0.02,2594.9,2594.8,3.89239407]
[1748925322672,0.02,2594.9,2594.8,3.85386156]
[1748925323116,0.02,2594.9,2594.8,11.89239128]
[1748925323321,0.02,2594.9,2594.8,14.79538469]
[1748925323532,0.02,2594.9,2594.8,11.85386156]
[1748925323821,0.02,2594.9,2594.8,15.85986156]
[1748925327183,0.02,2594.9,2594.8,18.80138469]
[1748925327329,0.02,2594.9,2594.8,19.63438469]
[1748925329259,0.02,2594.9,2594.8,16.68786156]
[1748925329460,0.02,2594.9,2594.8,12.68686156]
[1748925329665,0.02,2594.9,2594.8,16.68786156]
[1748925330759,0.02,2594.9,2594.8,16.68586156]
[1748925332343,0.02,2594.9,2594.8,19.62738469]
[1748925332877,0.02,2594.9,2594.8,16.68586156]
[1748925335664,0.02,2594.9,2594.8,16.67986156]
[1748925336886,0.02,2594.9,2594.8,12.68686156]
[1748925337189,0.02,2594.9,2594.8,19.61938469]
[1748925339910,0.02,2594.9,2594.8,23.2206147]
[1748925341102,0.02,2594.9,2594.8,26.1044257]
[1748925341602,0.02,2594.9,2594.8,26.4659747]
[1748925341801,0.02,2594.9,2594.8,26.4682947]
[1748925342592,0.02,2594.9,2594.8,19.61438469]
[1748925342978,0.02,2594.9,2594.8,28.64088469]
[1748925343161,0.02,2594.9,2594.8,27.93081382]
[1748925344056,0.02,2594.9,2594.8,22.55590782]
[1748925344900,0.02,2594.9,2594.8,25.24166782]
[1748925345620,0.02,2594.9,2594.8,22.55590782]
[1748925345796,0.02,2594.9,2594.8,19.61038469]
[1748925346521,0.02,2594.9,2594.8,22.55190782]
[1748925346717,0.02,2594.9,2594.8,19.61038469]
[1748925347915,0.02,2594.9,2594.8,22.55190782]
[1748925348210,0.02,2594.9,2594.8,19.61038469]
[1748925348587,0.02,2594.9,2594.8,22.55190782]
[1748925349208,0.02,2594.9,2594.8,19.61038469]
[1748925352114,0.02,2594.9,2594.8,22.55190782]
[1748925352319,0.02,2594.9,2594.8,19.61038469]
[1748925352818,0.02,2594.9,2594.8,15.62838469]
[1748925353020,0.02,2594.9,2594.8,19.82438469]
[1748925354523,0.02,2594.9,2594.8,14.79538469]
[1748925354825,0.02,2594.9,2594.8,18.76838469]
[1748925358228,0.8049,2595.6,2595.2,3.85326757]
[1748925358383,0.7946,2595.9,2595.8,3.85237691]
[1748925358582,0.7946,2595.9,2595.8,6.79390004]
[1748925358817,0.7946,2595.9,2595.8,6.83241705]
[1748925359025,0.7946,2595.9,2595.8,6.79390004]
[1748925361525,0.7946,2595.9,2595.8,2.94152313]
[1748925361704,0.7946,2595.9,2595.8,6.79390004]
[1748925362037,0.7946,2595.9,2595.8,2.94152313]
[1748925362244,0.02,2595.9,2595.8,6.79390004]
[1748925365303,0.02,2595.9,2595.8,2.94152313]
[1748925365703,0.779,2595.9,2595.8,2.94152313]
[1748925365899,0.779,2595.9,2595.3,2.94152313]
[1748925366208,0.779,2595.9,2595.7,2.94152313]
[1748925366733,0.779,2595.9,2595.7,6.79401707]
[1748925367528,0.779,2595.9,2595.7,2.94152313]
[1748925367733,0.779,2595.9,2595.7,6.79399593]
[1748925369148,0.779,2595.9,2595.8,3.85237691]
[1748925369851,0.779,2595.9,2595.7,6.79399369]
[1748925370847,0.779,2595.9,2595.8,3.85237691]
[1748925371013,0.779,2595.9,2595.8,6.79390004]
[1748925371649,0.779,2595.9,2595.8,2.94152313]
[1748925372152,0.779,2595.9,2595.8,6.79390004]
[1748925372952,0.779,2595.9,2595.6,2.94152313]
[1748925373153,0.779,2595.9,2595.6,6.79419352]
[1748925373672,0.779,2595.9,2595.7,3.85249575]
[1748925373847,0.779,2595.9,2595.8,2.94152313]
[1748925375387,0.779,2595.9,2595.5,3.85279109]
[1748925375388,0.779,2595.9,2595.5,2.94152313]
[1748925375691,0.7605,2595.6,2595.1,2.94152313]
[1748925376034,0.7605,2595.6,2595.2,8.0]
[1748925376588,0.7605,2595.6,2595.2,11.85322242]
[1748925377288,0.7605,2595.6,2595.3,3.85308346]
[1748925377448,0.7605,2595.6,2595.2,11.85320534]
[1748925377776,0.7605,2595.6,2595.3,2.94152313]
[1748925378270,0.7605,2595.6,2595.3,6.79460284]
[1748925380475,0.7605,2595.6,2595.3,2.94152313]
[1748925380680,0.7605,2595.6,2595.5,2.94152313]
[1748925381786,0.7605,2595.6,2595.5,6.79434532]
[1748925382970,0.7605,2595.6,2595.5,2.94152313]
[1748925384940,0.7605,2595.6,2595.2,2.94152313]
[1748925385145,1.22181088,2595.6,2595.2,2.94152313]
[1748925385381,1.22181088,2595.6,2595.2,6.79477644]
[1748925385687,0.8215,2595.1,2594.6,2.94152313]
[1748925385893,0.8215,2595.1,2594.8,2.94152313]
[1748925387275,0.8215,2595.1,2594.8,6.79535132]
[1748925387493,0.8215,2595.1,2595.0,2.94152313]
[1748925392698,0.8215,2595.1,2594.8,2.94152313]
[1748925393396,0.8215,2595.1,2594.8,6.83384122]
[1748925394162,0.7984,2595.5,2595.0,2.94152313]
[1748925394504,0.7984,2595.5,2595.2,2.94152313]
[1748925394803,4.65122392,2595.5,2595.2,2.94152313]
[1748925396161,3.85311994,2595.3,2595.0,2.94152313]
[1748925396362,3.85345149,2595.1,2594.7,2.94152313]
[1748925396562,0.83666531,2595.2,2594.7,2.94152313]
[1748925396802,0.7887,2595.2,2594.7,2.94152313]
[1748925397398,4.64200363,2595.2,2594.7,2.94152313]
[1748925397802,0.7887,2595.2,2594.9,2.94152313]
[1748925400134,0.7887,2595.2,2594.9,6.79522726]
[1748925401429,0.7887,2595.2,2594.9,2.94152313]
[1748925401938,0.7887,2595.2,2595.1,2.94152313]
[1748925403325,3.8528673,2595.5,2595.1,2.94152313]
[1748925403527,0.8187,2595.4,2595.1,2.94152313]
[1748925407042,4.67170295,2595.4,2595.1,2.94152313]
[1748925409068,1.67593432,2595.4,2594.9,2.94152313]
[1748925409244,3.8532208,2595.3,2594.8,11.85381837]
[1748925409440,3.85328344,2595.2,2594.7,2.94152313]
[1748925410265,3.85328344,2595.2,2594.7,6.79551882]
[1748925410444,3.90115551,2595.3,2594.7,6.79551882]
[1748925410640,3.85326909,2595.2,2594.7,6.79551882]
[1748925410957,4.6221295,2595.1,2594.7,2.94152313]
[1748925416775,3.85357991,2595.0,2594.7,2.94152313]
[1748925417338,4.62210816,2595.1,2594.7,2.94152313]
[1748925418469,4.67007347,2595.1,2594.7,2.94152313]
[1748925419049,3.85357902,2595.0,2594.7,2.94152313]
[1748925419249,3.85357902,2595.0,2594.3,5.0884982]
[1748925419250,3.85404184,2594.7,2594.3,2.94152313]
[1748925419455,3.85430718,2594.5,2594.0,2.94152313]
[1748925419652,3.85469252,2594.3,2593.8,3.73342313]
[1748925419877,0.809,2594.3,2593.8,11.73342313]
[1748925420080,0.809,2594.3,2594.0,2.94152313]
[1748925420441,4.01596531,2594.7,2594.0,2.94152313]
[1748925420442,0.809,2594.6,2594.2,2.94152313]
[1748925420779,0.809,2594.6,2594.4,2.94152313]
[1748925421072,4.67431212,2594.8,2594.4,2.94152313]
[1748925421284,4.72227743,2594.8,2594.4,2.94152313]
[1748925421497,0.8204,2594.8,2594.4,6.79594169]
[1748925421646,0.8204,2594.8,2594.4,2.94152313]
[1748925421845,0.8204,2594.8,2594.4,6.79587872]
[1748925422152,0.8204,2594.8,2594.4,2.94152313]
[1748925422336,4.72196482,2595.0,2594.7,2.94152313]
[1748925422751,4.67399951,2595.0,2594.7,2.94152313]
[1748925425662,3.85373971,2594.9,2594.7,2.94152313]
[1748925425861,0.8204,2595.0,2594.5,2.94152313]
[1748925426062,3.85381315,2594.9,2594.5,2.94152313]
[1748925431364,4.72200185,2595.0,2594.5,2.94152313]
[1748925432128,3.85378364,2594.9,2594.5,2.94152313]
[1748925432403,3.85395615,2594.8,2594.5,2.94152313]
[1748925432604,4.72198018,2595.0,2594.5,2.94152313]
[1748925432605,3.8537745,2594.9,2594.5,2.94152313]
[1748925433194,4.67399879,2595.0,2594.5,2.94152313]
[1748925433395,3.85378937,2594.9,2594.5,2.94152313]
[1748925433784,4.67399339,2595.0,2594.5,2.94152313]
[1748925434325,3.85392309,2594.8,2594.5,2.94152313]
[1748925434512,3.85376521,2594.9,2594.5,2.94152313]
[1748925435733,3.85376875,2594.9,2594.5,2.94152313]
[1748925436092,3.85371305,2594.9,2594.5,2.94152313]
[1748925436320,3.85346807,2595.1,2594.5,6.79573331]
[1748925436522,3.85359376,2595.0,2594.6,0.8245]
[1748925436826,4.67929994,2595.0,2594.6,0.8245]
[1748925437224,3.85372586,2594.9,2594.6,0.8245]
[1748925437592,3.85372586,2594.9,2594.5,2.94152313]
[1748925438431,3.8538981,2594.8,2594.4,0.7877]
[1748925438735,4.67932096,2595.0,2594.4,3.72922313]
[1748925438946,0.51589741,2594.9,2594.4,3.72922313]
[1748925439636,3.85388583,2594.8,2594.4,3.72922313]
[1748925439842,0.51589741,2594.9,2594.4,7.58364895]
[1748925439843,4.369666,2594.9,2594.4,7.58364895]
[1748925440528,4.32170069,2594.9,2594.4,7.58364895]
[1748925440929,4.32170069,2594.9,2594.4,3.72922313]
[1748925441432,4.32170069,2594.9,2594.4,7.58366962]
[1748925442641,0.4679321,2594.9,2594.5,3.85428503]
[1748925442834,0.7591,2595.2,2594.6,2.98006388]
[1748925443006,4.61237227,2595.2,2594.6,2.98006388]
[1748925443196,4.61237227,2595.2,2594.7,3.85400503]
[1748925443197,4.66033758,2595.2,2594.7,3.85400503]
[1748925443532,5.90837201,2595.2,2594.6,6.83417144]
[1748925444256,5.90837201,2595.2,2594.7,3.85399665]
[1748925445152,5.90837201,2595.2,2594.6,2.94152313]
[1748925445153,5.90837201,2595.2,2594.6,6.79560883]
[1748925445370,4.66033758,2595.2,2594.6,6.79560883]
[1748925447019,4.66033758,2595.2,2594.7,3.85396553]
[1748925448156,4.66033758,2595.2,2594.8,2.94152313]
[1748925448358,0.04796531,2595.1,2594.8,2.94152313]
[1748925448720,0.7944,2595.4,2595.0,2.94152313]
[1748925449055,3.85282581,2595.5,2595.0,2.94152313]
[1748925449355,0.04796531,2595.6,2595.0,2.94152313]
[1748925449356,3.85300612,2595.4,2595.0,2.94152313]
[1748925449850,0.04796531,2595.6,2595.0,2.94152313]
[1748925450054,3.85282504,2595.5,2595.0,2.94152313]
[1748925450765,3.90079035,2595.5,2595.0,2.94152313]
[1748925451073,3.8532579,2595.3,2594.8,0.7917]
[1748925451233,3.8532579,2595.3,2594.8,3.73322313]
[1748925451614,3.8532579,2595.3,2594.8,3.77175716]
[1748925451815,0.82706531,2595.4,2594.9,3.85362398]
[1748925452043,0.82706531,2595.4,2595.0,2.94152313]
[1748925452447,3.90086865,2595.5,2595.0,2.94152313]
[1748925452749,0.04796531,2595.5,2595.0,2.94152313]
[1748925453137,3.85297732,2595.4,2595.0,2.94152313]
[1748925453547,3.90080601,2595.5,2595.0,2.94152313]
[1748925457265,0.04796531,2595.5,2595.0,2.94152313]
[1748925457468,3.90092063,2595.5,2595.0,2.94152313]
[1748925458368,3.85297434,2595.4,2595.0,2.94152313]
[1748925460066,3.85312358,2595.3,2595.0,2.94152313]
[1748925460372,3.85297064,2595.4,2595.0,2.94152313]
[1748925460546,3.85319416,2595.3,2595.0,2.94152313]
[1748925462176,3.90100469,2595.4,2595.0,2.94152313]
[1748925462350,0.04796531,2595.4,2595.0,2.94152313]
[1748925462549,3.90103271,2595.4,2595.0,2.94152313]
[1748925463476,0.04796531,2595.4,2595.0,2.94152313]
[1748925463650,3.90085727,2595.5,2595.0,2.94152313]
[1748925463846,3.85289196,2595.5,2595.0,2.98005478]
[1748925464151,3.85284047,2595.5,2595.0,2.94152313]
[1748925465153,3.85284047,2595.5,2595.0,6.79505945]
[1748925465338,3.85284047,2595.5,2595.0,2.94152313]
[1748925466067,0.04796531,2595.4,2595.0,2.94152313]
[1748925466880,3.85284047,2595.5,2595.0,2.94152313]
[1748925467862,4.67189338,2595.6,2595.0,2.94152313]
[1748925468067,0.04796531,2595.6,2595.1,4.701821]
[1748925468263,0.04796531,2595.6,2595.1,4.70181955]
[1748925468434,3.90065349,2595.6,2595.1,0.81]
[1748925468975,3.85282469,2595.5,2595.1,0.81]
[1748925469383,3.90071141,2595.6,2595.1,0.81]
[1748925469544,3.90071141,2595.6,2595.2,2.94152313]
[1748925472023,0.04796531,2595.6,2595.0,0.37717548]
[1748925472158,4.7736,2595.8,2594.7,3.85397715]
[1748925472159,3.8530735,2595.4,2594.9,3.69782313]
[1748925472898,3.8530735,2595.4,2594.9,0.7563]
[1748925472899,0.04796531,2595.3,2594.9,0.7563]
[1748925473105,0.04796531,2595.3,2594.6,0.8156]
[1748925473399,3.85354185,2595.1,2594.6,0.8156]
[1748925473601,3.853842,2594.9,2594.6,0.8156]
[1748925473814,3.853842,2594.9,2594.6,0.37672867]
[1748925474010,3.853842,2594.9,2594.5,2.94152313]
[1748925477582,4.72824565,2595.0,2594.5,3.32541292]
[1748925477784,0.87456531,2595.0,2594.5,3.32541292]
[1748925478208,0.8266,2595.0,2594.5,3.32541292]
[1748925478579,3.8537235,2594.9,2594.5,3.32541292]
[1748925478992,4.68023607,2595.0,2594.5,3.32541292]
[1748925479822,3.85375888,2594.9,2594.5,3.32541292]
[1748925480834,3.85371305,2594.9,2594.5,3.32541292]
[1748925483112,4.72818793,2595.0,2594.5,3.32541292]
[1748925483312,3.85362262,2595.0,2594.7,2.94152313]
[1748925485020,3.85362262,2595.0,2594.5,0.38388979]
[1748925485021,0.04796531,2594.9,2594.5,0.38388979]
[1748925485199,3.85405593,2594.7,2594.3,2.94152313]
[1748925485938,4.71458596,2594.8,2594.3,3.33538189]
[1748925486137,3.85401374,2594.7,2594.3,3.33538189]
[1748925486370,4.71458586,2594.8,2594.3,3.33538189]
[1748925487138,3.85408486,2594.7,2594.3,3.33538189]
[1748925487299,0.04796531,2594.6,2594.3,3.33538189]
[1748925487920,0.04796531,2594.7,2594.3,3.33538189]
[1748925488935,3.90205014,2594.7,2594.3,3.33538189]
[1748925489137,0.04796531,2594.7,2594.3,3.33538189]
[1748925490402,0.04796531,2594.7,2594.5,2.94152313]
[1748925490613,0.04796531,2594.9,2594.6,0.8331]
[1748925492741,3.90168026,2594.9,2594.6,0.8331]
[1748925492949,0.04796531,2594.9,2594.5,2.94152313]
[1748925493254,3.90152985,2595.0,2594.5,2.94152313]
[1748925493546,4.75300807,2595.0,2594.5,2.94152313]
[1748925493842,3.85374175,2594.9,2594.5,2.94152313]
[1748925494073,0.04796531,2594.8,2594.5,2.94152313]
[1748925494662,3.90170706,2594.9,2594.5,2.94152313]
[1748925495445,0.04796531,2594.9,2594.5,2.94152313]
[1748925495981,3.9017066,2594.9,2594.5,2.94152313]
[1748925496781,0.04796531,2594.9,2594.5,2.94152313]
[1748925497282,3.90169882,2594.9,2594.5,2.94152313]
[1748925498476,3.85401556,2594.7,2594.5,2.94152313]
[1748925498781,0.04796531,2594.7,2594.3,4.14198189]
[1748925499148,0.04796531,2594.7,2594.3,7.9965169]
[1748925499660,0.04796531,2594.7,2594.3,4.14198189]
[1748925500472,0.04796531,2594.7,2594.3,7.99656234]
[1748925500994,0.04796531,2594.7,2594.5,2.94152313]
[1748925501192,0.04796531,2594.8,2594.5,2.94152313]
[1748925502374,0.04796531,2594.8,2594.5,6.79575209]
[1748925502684,0.04796531,2594.9,2594.5,6.79575209]
[1748925502888,0.04796531,2594.9,2594.5,2.94152313]
[1748925503489,3.90168551,2594.9,2594.5,2.94152313]
[1748925504549,0.04796531,2594.9,2594.5,2.94152313]
[1748925505178,3.90170601,2594.9,2594.5,2.94152313]
[1748925507568,0.04796531,2594.9,2594.5,2.94152313]
[1748925508296,3.90170869,2594.9,2594.5,2.94152313]
[1748925509392,3.85387506,2594.8,2594.4,2.94152313]
[1748925509571,0.04796531,2594.7,2594.4,2.94152313]
[1748925509771,0.04796531,2594.8,2594.4,6.79597251]
[1748925509984,0.04796531,2594.8,2594.4,2.94152313]
[1748925511798,0.04796531,2594.8,2594.4,6.795933]
[1748925512388,0.04796531,2594.9,2594.5,3.85428881]
[1748925513998,3.90168318,2594.9,2594.4,6.79590981]
[1748925515401,5.14937466,2594.9,2594.4,6.79590981]
[1748925515999,1.29565679,2594.9,2594.4,6.79590981]
[1748925517581,0.04796531,2594.9,2594.5,3.85429258]
[1748925518603,0.04796531,2594.9,2594.6,2.94152313]
[1748925518906,0.04796531,2595.0,2594.6,2.94152313]
[1748925519506,0.04796531,2595.0,2594.6,6.79561851]
[1748925519672,0.7598,2595.1,2594.6,2.94152313]
[1748925520002,0.80776531,2595.1,2594.8,2.94152313]
[1748925521066,0.7713,2595.3,2594.8,2.94152313]
[1748925521408,8.58551226,2595.3,2594.8,2.94152313]
[1748925521707,0.90651654,2595.2,2594.8,2.94152313]
[1748925521908,0.04796531,2595.2,2594.8,2.94152313]
[1748925522205,0.04796531,2595.2,2594.8,6.79535844]
[1748925522670,0.04796531,2595.2,2594.8,2.94152313]
[1748925523206,3.85342344,2595.1,2594.8,2.94152313]
[1748925523388,0.04796531,2595.0,2594.6,3.71172313]
[1748925525381,3.90138875,2595.1,2594.6,3.71172313]
[1748925526512,3.90138875,2595.1,2594.6,2.94152313]
[1748925528217,0.04796531,2595.1,2594.6,6.79559752]
[1748925528388,3.90123288,2595.2,2594.6,6.79559752]
[1748925528588,3.85344412,2595.1,2594.6,6.79559752]
[1748925529320,5.14999589,2595.2,2594.7,4.61388361]
[1748925529499,3.85343746,2595.1,2594.8,2.94152313]
[1748925529699,0.04796531,2595.0,2594.8,2.94152313]
[1748925530093,3.90140277,2595.1,2594.8,2.94152313]
[1748925530418,0.04796531,2595.1,2594.8,2.94152313]
[1748925532843,3.90140849,2595.1,2594.8,2.94152313]
[1748925533034,0.04796531,2595.1,2594.8,2.94152313]
[1748925537639,3.90138524,2595.1,2594.8,2.94152313]
[1748925537943,0.04796531,2595.1,2594.8,2.94152313]
[1748925539262,0.04796531,2595.1,2594.8,2.40394892]
[1748925539863,3.90142892,2595.1,2594.8,2.40394892]
[1748925540955,0.04796531,2595.1,2594.8,2.40394892]
[1748925542025,3.90139229,2595.1,2594.8,2.40394892]
[1748925543560,3.85368359,2595.0,2594.8,2.40394892]
[1748925543748,0.04796531,2594.9,2594.8,2.40394892]
[1748925543950,4.70872135,2594.9,2594.5,2.40394892]
[1748925546376,0.85496531,2594.9,2594.7,2.40394892]
[1748925546585,1.32581599,2594.9,2594.3,0.39385876]
[1748925546754,3.8539401,2594.8,2594.4,2.40394892]
[1748925546948,0.04796531,2594.7,2594.4,2.40394892]
[1748925548558,3.90205545,2594.7,2594.4,2.40394892]
[1748925549245,3.90205545,2594.7,2594.2,3.72303191]
[1748925550187,3.90197707,2594.7,2594.2,7.57765272]
[1748925550850,0.04796531,2594.7,2594.2,7.963703]
[1748925551050,3.85405235,2594.7,2594.2,7.963703]
[1748925552116,3.85405235,2594.7,2594.2,4.10908219]
[1748925552292,0.04796531,2594.6,2594.2,4.10908219]
[1748925553954,3.85405235,2594.7,2594.2,4.10908219]
[1748925554171,3.90201766,2594.7,2594.2,4.10908219]
[1748925555771,3.85415863,2594.6,2594.2,3.32528219]
[1748925555976,3.90212394,2594.6,2594.2,3.32528219]
[1748925556397,0.04796531,2594.6,2594.2,3.32528219]
[1748925556573,3.90205203,2594.7,2594.2,3.32528219]
[1748925556774,0.02,2595.9,2594.7,8.0]
[1748925556994,0.02,2595.9,2595.6,2.93923191]
[1748925557386,3.87226866,2595.9,2595.4,3.70313191]
[1748925558633,3.87226866,2595.9,2595.4,4.09706908]
[1748925559123,0.02,2595.9,2595.4,5.01080331]
[1748925559321,3.87225618,2595.9,2595.4,1.15783717]
[1748925559474,4.68395618,2595.9,2595.4,1.15783717]
[1748925560128,4.68395618,2595.9,2595.4,0.39393717]
[1748925560423,4.68395618,2595.9,2595.3,3.85307594]
[1748925560727,3.85238091,2595.8,2595.3,0.67428143]
[1748925562731,3.85238091,2595.8,2595.3,0.7128084]
[1748925563732,3.85238536,2595.8,2595.3,4.56588181]
[1748925564027,3.85238536,2595.8,2595.3,4.94519308]
[1748925564431,0.8317,2595.9,2595.5,2.93923191]
[1748925564601,0.02,2595.9,2595.7,2.93923191]
[1748925564795,0.02,2595.9,2595.7,6.79164729]
[1748925564991,0.02,2595.9,2595.7,3.85241538]
[1748925568103,0.02,2595.9,2595.8,3.89089678]